bitfinex/quotes_SOLUSD_20250611
["timestamp","ask_amount","ask_price","bid_price","bid_amount"]
[1749658465269,11.36483409,166.38,166.37,26.1]
[1749658465474,11.36483409,166.39,166.35,24.66474886]
[1749658465660,11.36483409,166.38,166.35,24.66474886]
[1749658465852,11.36483409,166.38,166.36,26.1]
[1749658466047,0.28432314,166.44,166.36,26.1]
[1749658466253,11.36483409,166.38,166.36,26.1]
[1749658466463,11.36483409,166.37,166.31,30.01448295]
[1749658466655,11.36483409,166.36,166.33,18.64964886]
[1749658467069,11.64915723,166.41,166.33,18.64964886]
[1749658467375,11.36483409,166.39,166.35,18.64964886]
[1749658467572,11.36483409,166.39,166.35,44.74964886]
[1749658468068,11.36483409,166.38,166.35,44.74964886]
[1749658468443,11.36483409,166.37,166.35,18.64964886]
[1749658468649,11.36483409,166.37,166.35,26.1]
[1749658469268,0.28432314,166.43,166.35,26.1]
[1749658469460,11.36483409,166.38,166.35,26.1]
[1749658470071,0.28432314,166.43,166.35,26.1]
[1749658470263,11.36483409,166.38,166.35,26.1]
[1749658470660,11.36483409,166.37,166.35,26.1]
[1749658470864,11.36483409,166.38,166.35,26.1]
[1749658472274,11.36483409,166.37,166.35,26.1]
[1749658472482,11.36483409,166.36,166.35,26.1]
[1749658473355,11.36483409,166.36,166.31,11.36483409]
[1749658473356,11.36483409,166.36,166.34,26.1]
[1749658474579,3.9546,166.44,166.34,26.1]
[1749658474760,11.36483409,166.39,166.35,18.64964886]
[1749658475081,11.36483409,166.38,166.35,18.64964886]
[1749658475374,11.36483409,166.37,166.34,26.1]
[1749658475583,11.36483409,166.36,166.34,26.1]
[1749658476178,11.36483409,166.37,166.34,26.1]
[1749658476575,11.36483409,166.38,166.34,26.1]
[1749658476953,11.36483409,166.37,166.34,26.1]
[1749658477357,0.28432314,166.4,166.34,26.1]
[1749658477761,11.36483409,166.36,166.34,26.1]
[1749658477974,0.14216157,166.45,166.34,26.1]
[1749658478179,0.42648471,166.45,166.34,26.1]
[1749658478382,11.36483409,166.39,166.35,18.64964886]
[1749658478594,11.36483409,166.43,166.38,30.01448295]
[1749658478886,11.36483409,166.48,166.42,11.36483409]
[1749658479182,11.36483409,166.48,166.43,11.36483409]
[1749658479380,11.36483409,166.47,166.42,37.46483409]
[1749658479582,17.37203809,166.47,166.42,26.1]
[1749658479773,17.37203809,166.47,166.42,37.46483409]
[1749658480385,11.36483409,166.46,166.42,26.1]
[1749658481593,11.36483409,166.45,166.42,26.1]
[1749658482104,0.28432314,166.49,166.42,26.1]
[1749658482265,11.36483409,166.46,166.42,26.1]
[1749658482978,17.3716853,166.48,166.43,11.36483409]
[1749658483388,6.00685121,166.48,166.43,7.8656]
[1749658483593,11.36483409,166.49,166.44,30.01448295]
[1749658483774,2.94560896,166.52,166.45,37.44483409]
[1749658484000,11.36483409,166.52,166.47,11.36483409]
[1749658484188,11.36483409,166.52,166.48,26.08]
[1749658485185,2.98661199,166.52,166.48,26.08]
[1749658485387,11.36483409,166.51,166.48,26.08]
[1749658486983,11.36483409,166.5,166.48,26.08]
[1749658487872,0.42648471,166.55,166.48,26.08]
[1749658488085,11.36483409,166.5,166.48,26.08]
[1749658489064,11.36483409,166.51,166.48,26.08]
[1749658489299,11.36483409,166.52,166.48,26.08]
[1749658490289,11.36483409,166.53,166.48,37.44483409]
[1749658490795,14.38434225,166.53,166.48,37.44483409]
[1749658490996,4.46180944,166.59,166.49,18.64964886]
[1749658491189,11.36483409,166.55,166.5,11.36483409]
[1749658491387,11.36483409,166.55,166.51,44.72964886]
[1749658491593,3.01650696,166.56,166.51,26.08]
[1749658491898,11.36483409,166.54,166.51,26.08]
[1749658492205,0.28432314,166.58,166.51,26.08]
[1749658492384,11.36483409,166.54,166.51,26.08]
[1749658492981,11.36483409,166.53,166.51,26.08]
[1749658493188,6.00426668,166.55,166.44,87.3]
[1749658493189,11.36483409,166.52,166.44,87.3]
[1749658493493,11.36483409,166.46,166.45,26.08]
[1749658493697,11.36483409,166.46,166.44,44.72964886]
[1749658493878,11.36483409,166.46,166.43,6.267]
[1749658494079,11.36483409,166.45,166.43,32.347]
[1749658494998,11.36483409,166.44,166.43,32.347]
[1749658495195,11.36483409,166.44,166.43,6.267]
[1749658495402,11.36483409,166.44,166.43,32.347]
[1749658495615,11.36483409,166.45,166.43,32.347]
[1749658496896,10.86483409,166.45,166.43,32.347]
[1749658497720,10.86483409,166.45,166.43,30.847]
[1749658498518,10.86483409,166.45,166.43,26.08]
[1749658499216,0.28432314,166.49,166.4,18.64964886]
[1749658499217,11.36483409,166.44,166.4,18.64964886]
[1749658499513,0.28432314,166.47,166.41,26.08]
[1749658499899,11.36483409,166.47,166.42,30.01448295]
[1749658500307,11.36483409,166.48,166.44,18.64964886]
[1749658500506,11.36483409,166.48,166.45,26.08]
[1749658500702,6.00573094,166.51,166.45,26.08]
[1749658500703,11.36483409,166.47,166.45,26.08]
[1749658500898,11.36483409,166.5,166.46,18.64964886]
[1749658501106,3.07039845,166.56,166.46,18.64964886]
[1749658501107,11.36483409,166.51,166.46,30.01448295]
[1749658501314,3.07039845,166.56,166.48,30.01448295]
[1749658501315,6.00427256,166.55,166.48,30.01448295]
[1749658501517,3.07039845,166.56,166.5,18.64964886]
[1749658501518,11.36483409,166.54,166.5,18.64964886]
[1749658502117,11.36483409,166.55,166.5,18.64964886]
[1749658502323,6.00361286,166.57,166.5,30.01448295]
[1749658502523,11.36483409,166.55,166.5,30.01448295]
[1749658502830,11.09735781,166.6,166.5,30.01448295]
[1749658502831,11.36483409,166.56,166.51,11.36483409]
[1749658503146,12.20247296,166.6,166.54,11.36483409]
[1749658503430,6.2,166.6,166.55,37.44483409]
[1749658503604,6.9879,166.66,166.56,18.64964886]
[1749658503809,11.36483409,166.6,166.56,18.64964886]
[1749658504318,21.00210021,166.65,166.56,30.01448295]
[1749658504319,11.36483409,166.61,166.56,30.01448295]
[1749658504534,6.00060006,166.65,166.56,30.01448295]
[1749658504734,4.45074104,166.67,166.6,18.64964886]
[1749658504940,4.45074104,166.67,166.61,26.06]
[1749658504941,11.36483409,166.64,166.61,26.06]
[1749658505232,5.9999481,166.67,166.61,26.06]
[1749658505444,11.36483409,166.63,166.61,26.06]
[1749658505738,3.04762445,166.65,166.59,26.06]
[1749658505943,11.36483409,166.6,166.59,26.06]
[1749658506301,11.36483409,166.61,166.59,26.06]
[1749658506507,11.36483409,166.6,166.59,26.06]
[1749658507031,0.14216157,166.64,166.59,26.06]
[1749658507227,11.36483409,166.61,166.57,32.5227]
[1749658507969,0.14216157,166.63,166.57,32.5227]
[1749658508236,11.36483409,166.61,166.58,18.64964886]
[1749658509038,11.36483409,166.6,166.57,32.5227]
[1749658509202,11.36483409,166.59,166.57,26.06]
[1749658509808,11.36483409,166.58,166.56,26.06]
[1749658510033,6.00204449,166.61,166.56,26.06]
[1749658510212,11.36483409,166.59,166.56,26.06]
[1749658510443,11.36483409,166.58,166.56,26.06]
[1749658510639,11.36483409,166.57,166.56,26.06]
[1749658510864,11.36483409,166.58,166.56,26.06]
[1749658511165,11.36483409,166.59,166.56,26.06]
[1749658511361,6.00178238,166.62,166.56,26.06]
[1749658511574,0.28432314,166.61,166.56,26.06]
[1749658512159,11.36483409,166.6,166.57,18.64964886]
[1749658512463,6.00132029,166.63,166.57,18.64964886]
[1749658512641,6.00107463,166.64,166.57,30.01448295]
[1749658512841,11.36483409,166.62,166.57,30.01448295]
[1749658513254,11.36483409,166.61,166.57,30.01448295]
[1749658513576,11.36483409,166.61,166.57,18.64964886]
[1749658513737,11.36483409,166.59,166.57,18.64964886]
[1749658513939,11.36483409,166.6,166.57,18.64964886]
[1749658514243,0.28432314,166.64,166.57,30.01448295]
[1749658514441,11.36483409,166.62,166.57,30.01448295]
[1749658514836,11.36483409,166.62,166.49,10.0]
[1749658514837,19.07613357,166.54,166.38,17.43053409]
[1749658515048,11.36483409,166.43,166.38,6.0657]
[1749658515258,0.42648471,166.49,166.38,6.0657]
[1749658515454,11.36483409,166.42,166.38,6.0657]
[1749658515663,0.28432314,166.46,166.39,18.64964886]
[1749658515837,11.36483409,166.44,166.39,18.64964886]
[1749658516037,11.36483409,166.43,166.39,44.68964886]
[1749658517157,6.29187988,166.46,166.39,44.68964886]
[1749658517363,18.48004864,166.43,166.39,44.68964886]
[1749658518090,18.48004864,166.43,166.39,44.70964886]
[1749658518391,6.00784562,166.45,166.38,6.0657]
[1749658518392,18.48004864,166.4,166.38,6.0657]
[1749658518557,0.28432314,166.44,166.38,32.1257]
[1749658518882,18.48004864,166.4,166.38,32.1257]
[1749658519079,18.48004864,166.39,166.37,26.06]
[1749658519279,18.48004864,166.38,166.36,18.64964886]
[1749658519678,0.28432314,166.42,166.36,18.64964886]
[1749658519882,6.00853211,166.43,166.36,18.64964886]
[1749658519883,18.48004864,166.39,166.36,18.64964886]
[1749658520078,18.48004864,166.39,166.36,44.70964886]
[1749658520381,18.48004864,166.39,166.36,18.64964886]
[1749658520569,18.48004864,166.39,166.36,44.70964886]
[1749658521370,6.29285525,166.43,166.38,18.48004864]
[1749658521371,18.48004864,166.43,166.38,18.48004864]
[1749658521568,18.48004864,166.43,166.39,26.06]
[1749658521886,18.48004864,166.44,166.4,18.64964886]
[1749658522186,18.48004864,166.43,166.4,18.64964886]
[1749658523179,0.14216157,166.46,166.4,18.64964886]
[1749658523386,18.48004864,166.43,166.4,18.64964886]
[1749658523785,18.48004864,166.44,166.39,37.1296975]
[1749658523989,18.48004864,166.43,166.41,18.64964886]
[1749658524865,6.00720954,166.47,166.41,18.64964886]
[1749658525079,18.48004864,166.43,166.4,26.06]
[1749658525282,18.48004864,166.42,166.4,26.06]
[1749658526098,6.29195545,166.46,166.4,26.06]
[1749658526284,18.48004864,166.43,166.4,26.06]
[1749658526479,18.48004864,166.42,166.4,26.06]
[1749658528292,18.48004864,166.43,166.4,26.06]
[1749658528608,18.48004864,166.42,166.4,26.06]
[1749658528774,18.48004864,166.41,166.4,26.06]
[1749658529598,18.48004864,166.41,166.38,44.70964886]
[1749658530300,18.48004864,166.4,166.34,93.7751]
[1749658530486,18.48004864,166.38,166.35,44.70964886]
[1749658531601,18.76437178,166.43,166.35,44.70964886]
[1749658531787,18.76437178,166.43,166.35,18.64964886]
[1749658532095,6.00781015,166.45,166.37,18.64964886]
[1749658532096,18.48004864,166.41,166.37,18.64964886]
[1749658532396,0.14216157,166.46,166.39,18.64964886]
[1749658532397,0.28432314,166.46,166.39,18.64964886]
[1749658532578,18.48004864,166.42,166.39,18.64964886]
[1749658532779,0.28432314,166.46,166.39,18.64964886]
[1749658532985,18.48004864,166.43,166.39,18.64964886]
[1749658533186,18.48004864,166.41,166.39,18.64964886]
[1749658533380,18.48004864,166.42,166.39,18.64964886]
[1749658533802,18.48004864,166.41,166.39,18.64964886]
[1749658534006,18.48004864,166.41,166.38,113.36]
[1749658534187,18.48004864,166.4,166.38,26.06]
[1749658535398,0.28432314,166.44,166.38,26.06]
[1749658535606,18.48004864,166.41,166.38,26.06]
[1749658536510,18.48004864,166.39,166.38,26.06]
[1749658536900,18.48004864,166.39,166.36,87.3]
[1749658537209,18.48004864,166.38,166.37,26.06]
[1749658537707,18.48004864,166.39,166.37,26.06]
[1749658538083,0.28432314,166.42,166.37,26.06]
[1749658538307,18.48004864,166.4,166.37,26.06]
[1749658538608,18.48004864,166.39,166.35,18.64964886]
[1749658538784,18.48004864,166.39,166.36,26.06]
[1749658539298,11.343422,166.39,166.36,26.06]
[1749658539709,11.343422,166.38,166.36,26.06]
[1749658539885,11.343422,166.37,166.32,18.64964886]
[1749658540206,11.343422,166.36,166.33,26.06]
[1749658540603,11.343422,166.37,166.33,26.06]
[1749658540996,11.343422,166.36,166.32,18.64964886]
[1749658541227,11.343422,166.35,166.32,18.64964886]
[1749658541415,17.35283793,166.41,166.33,26.06]
[1749658541919,11.343422,166.38,166.33,11.343422]
[1749658542123,11.343422,166.38,166.33,37.403422]
[1749658542307,11.343422,166.37,166.33,37.403422]
[1749658542624,11.343422,166.37,166.34,18.64964886]
[1749658542932,11.343422,166.4,166.36,18.64964886]
[1749658543103,11.343422,166.4,166.37,26.06]
[1749658543727,11.343422,166.39,166.37,26.06]
[1749658543929,11.343422,166.4,166.37,26.06]
[1749658544337,11.343422,166.42,166.38,18.64964886]
[1749658544801,11.343422,166.39,166.37,26.06]
[1749658544996,11.343422,166.38,166.36,26.06]
[1749658545225,11.343422,166.37,166.36,26.06]
[1749658545523,11.343422,166.37,166.35,26.06]
[1749658545702,11.343422,166.36,166.33,6.5888]
[1749658545900,11.343422,166.36,166.33,32.6488]
[1749658546302,0.28432314,166.4,166.33,32.6488]
[1749658546526,11.343422,166.38,166.33,43.992222]
[1749658546713,11.343422,166.37,166.33,32.6488]
[1749658547239,18.48976645,166.37,166.33,32.6488]
[1749658547526,18.48976645,166.37,166.34,26.06]
[1749658548047,18.48976645,166.37,166.33,6.5888]
[1749658548756,0.28432314,166.4,166.33,6.5888]
[1749658548958,18.48976645,166.37,166.33,6.5888]
[1749658549331,0.28432314,166.4,166.33,6.5888]
[1749658549532,18.48976645,166.37,166.33,6.5888]
[1749658550142,18.48976645,166.36,166.33,6.5888]
[1749658550449,18.48976645,166.39,166.34,18.48976645]
[1749658550752,18.48976645,166.38,166.34,18.64964886]
[1749658550937,18.48976645,166.36,166.34,87.3]
[1749658551137,18.48976645,166.37,166.34,87.3]
[1749658551340,15.01925009,166.46,166.35,18.64964886]
[1749658551533,18.48976645,166.4,166.35,150.49941531]
[1749658553155,18.48976645,166.42,166.37,37.13941531]
[1749658553339,9.99901243,166.47,166.39,18.48976645]
[1749658553340,18.48976645,166.43,166.39,18.48976645]
[1749658553650,18.48976645,166.43,166.38,44.54976645]
[1749658553858,18.48976645,166.43,166.39,18.64964886]
[1749658554061,6.00637596,166.49,166.39,124.43941531]
[1749658554261,18.48976645,166.44,166.39,124.43941531]
[1749658554556,18.48976645,166.44,166.41,18.64964886]
[1749658555358,18.48976645,166.44,166.39,37.13941531]
[1749658556248,6.00710492,166.47,166.39,37.13941531]
[1749658556249,18.48976645,166.43,166.39,37.13941531]
[1749658556651,18.48976645,166.43,166.4,26.06]
[1749658556869,18.48976645,166.44,166.4,26.06]
[1749658557467,18.48976645,166.45,166.41,18.64964886]
[1749658558370,18.48976645,166.44,166.41,18.64964886]
[1749658559244,18.48976645,166.43,166.39,18.64964886]
[1749658559451,18.48976645,166.44,166.39,37.13941531]
[1749658561272,18.48976645,166.43,166.39,18.64964886]
[1749658561472,18.48976645,166.42,166.39,18.64964886]
[1749658561674,6.00790919,166.45,166.39,26.06]
[1749658561675,18.48976645,166.41,166.39,26.06]
[1749658561866,18.48976645,166.42,166.39,26.06]
[1749658562376,18.48976645,166.44,166.4,18.64964886]
[1749658562878,18.48976645,166.43,166.4,18.64964886]
[1749658564459,0.28432314,166.46,166.4,18.64964886]
[1749658564765,0.28432314,166.48,166.42,18.48976645]
[1749658564971,18.48976645,166.47,166.42,131.84976645]
[1749658565158,18.48976645,166.47,166.43,18.48976645]
[1749658565784,18.63192802,166.48,166.43,18.48976645]
[1749658565982,18.48976645,166.47,166.42,131.84976645]
[1749658566183,18.48976645,166.46,166.42,113.36]
[1749658566980,6.14896773,166.48,166.42,113.36]
[1749658566981,18.48976645,166.47,166.42,113.36]
[1749658567178,4.45530915,166.51,166.45,18.48976645]
[1749658567380,4.82982507,166.53,166.46,18.48976645]
[1749658567684,24.66976645,166.54,166.48,18.48976645]
[1749658567857,18.48976645,166.53,166.48,26.06]
[1749658568580,18.48976645,166.53,166.48,44.54976645]
[1749658568990,6.18,166.54,166.48,44.54976645]
[1749658569167,18.48976645,166.52,166.48,26.06]
[1749658569576,18.48976645,166.52,166.48,18.64964886]
[1749658570280,23.38690116,166.53,166.48,37.13941531]
[1749658570585,18.48976645,166.53,166.48,37.13941531]
[1749658571088,18.48976645,166.52,166.48,18.64964886]
[1749658571290,11.32577629,166.52,166.48,18.64964886]
[1749658571672,11.32577629,166.49,166.45,6.262]
[1749658572072,11.32577629,166.48,166.45,6.262]
[1749658572273,5.21879473,166.53,166.45,17.58777629]
[1749658572474,5.21879473,166.53,166.47,11.32577629]
[1749658572701,11.32577629,166.52,166.47,11.32577629]
[1749658572906,11.32577629,166.52,166.48,18.64964886]
[1749658573080,4.93447159,166.53,166.48,11.32577629]
[1749658573398,11.32577629,166.53,166.48,11.32577629]
[1749658574077,0.28432314,166.55,166.49,26.04]
[1749658574276,11.32577629,166.54,166.49,124.66577629]
[1749658575279,15.41870269,166.56,166.49,124.66577629]
[1749658575280,6.18,166.56,166.5,29.97542515]
[1749658575482,11.32577629,166.55,166.5,29.97542515]
[1749658575876,11.32577629,166.55,166.5,117.27542515]
[1749658576885,6.18,166.56,166.5,105.94964886]
[1749658576886,11.32577629,166.54,166.5,105.94964886]
[1749658577309,11.32577629,166.54,166.49,37.36577629]
[1749658577310,11.32577629,166.52,166.49,113.34]
[1749658577798,11.32577629,166.53,166.49,113.34]
[1749658578015,11.32577629,166.5,166.49,87.3]
[1749658578316,11.32577629,166.5,166.48,18.64964886]
[1749658578611,11.32577629,166.5,166.47,26.04]
[1749658578818,11.32577629,166.5,166.47,18.64964886]
[1749658578980,11.32577629,166.5,166.45,17.58777629]
[1749658578981,11.32577629,166.5,166.45,6.262]
[1749658579190,11.32577629,166.48,166.46,18.64964886]
[1749658579399,11.32577629,166.47,166.45,87.3]
[1749658579700,6.00611638,166.5,166.41,11.32577629]
[1749658579701,11.32577629,166.46,166.41,18.64964886]
[1749658579901,11.32577629,166.42,166.4,26.04]
[1749658580226,11.32577629,166.42,166.39,26.04]
[1749658580389,11.32577629,166.42,166.4,18.64964886]
[1749658580803,11.32577629,166.41,166.37,18.64964886]
[1749658581007,11.32577629,166.41,166.39,18.64964886]
[1749658581206,11.32577629,166.4,166.37,18.64964886]
[1749658581396,18.48332874,166.4,166.38,26.04]
[1749658581601,18.48332874,166.4,166.37,44.68964886]
[1749658581913,18.48332874,166.39,166.37,18.64964886]
[1749658582107,18.48332874,166.38,166.34,1.6414]
[1749658582289,18.48332874,166.37,166.36,18.64964886]
[1749658582493,18.48332874,166.39,166.36,18.64964886]
[1749658582691,18.48332874,166.4,166.36,18.64964886]
[1749658583116,16.67553174,166.49,166.37,18.48332874]
[1749658583422,18.48332874,166.43,166.39,18.64964886]
[1749658587220,6.29159191,166.47,166.39,37.1329776]
[1749658587221,18.48332874,166.44,166.39,37.1329776]
[1749658588107,15.06139489,166.51,166.44,18.64964886]
[1749658588333,10.64511863,166.54,166.44,63.1729776]
[1749658588518,18.48332874,166.49,166.44,63.1729776]
[1749658588912,18.48332874,166.5,166.44,44.68964886]
[1749658589133,18.48332874,166.5,166.46,18.64964886]
[1749658589331,18.48332874,166.49,166.47,26.04]
[1749658589638,6.0050012,166.53,166.47,26.04]
[1749658589639,18.48332874,166.48,166.47,26.04]
[1749658589822,18.48332874,166.48,166.45,26.04]
[1749658590022,18.48332874,166.46,166.45,26.04]
[1749658590424,18.48332874,166.46,166.44,18.64964886]
[1749658590739,0.28432314,166.52,166.44,18.64964886]
[1749658590926,18.48332874,166.46,166.44,18.64964886]
[1749658591825,6.00637558,166.49,166.43,26.04]
[1749658592034,18.48332874,166.45,166.43,26.04]
[1749658592729,18.48332874,166.44,166.43,26.04]
[1749658593019,18.48332874,166.45,166.43,26.04]
[1749658593548,18.48332874,166.46,166.43,26.04]
[1749658595308,0.28432314,166.49,166.43,113.34]
[1749658595537,18.48332874,166.46,166.43,113.34]
[1749658596137,0.28432314,166.49,166.43,113.34]
[1749658596339,18.48332874,166.47,166.43,113.34]
[1749658597856,18.48332874,166.48,166.44,18.64964886]
[1749658598154,18.48332874,166.5,166.46,18.64964886]
[1749658598313,18.48332874,166.5,166.47,26.02]
[1749658598745,18.48332874,166.49,166.47,26.02]
[1749658599051,6.00497129,166.53,166.47,26.02]
[1749658599528,18.48332874,166.49,166.47,26.02]
[1749658599839,6.0875444,166.55,166.47,26.02]
[1749658599840,4.4731444,166.55,166.48,24.84824886]
[1749658600036,18.48332874,166.55,166.5,37.1329776]
[1749658600237,18.48332874,166.55,166.52,18.64964886]
[1749658600940,18.48332874,166.56,166.53,26.02]
[1749658602118,18.48332874,166.55,166.53,26.02]
[1749658603730,18.48332874,166.56,166.53,26.02]
[1749658604160,18.48332874,166.55,166.48,6.1986]
[1749658604454,18.48332874,166.54,166.49,44.50332874]
[1749658605022,18.48332874,166.57,166.51,18.48332874]
[1749658605238,0.14216157,166.59,166.53,18.64964886]
[1749658605442,18.48332874,166.57,166.53,18.64964886]
[1749658607357,4.4731444,166.62,166.55,37.1329776]
[1749658607521,1.5281,166.65,166.57,18.64964886]
[1749658607522,18.48332874,166.61,166.57,18.64964886]
[1749658607920,18.48332874,166.62,166.57,37.1329776]
[1749658608332,18.48332874,166.63,166.57,18.64964886]
[1749658608535,18.48332874,166.64,166.59,37.1329776]
[1749658608734,18.48332874,166.66,166.61,37.1329776]
[1749658608937,18.48332874,166.68,166.63,18.48332874]
[1749658609136,7.57224037,166.73,166.65,18.64964886]
[1749658609327,18.48332874,166.69,166.65,18.64964886]
[1749658609542,12.33288215,166.73,166.65,18.64964886]
[1749658609765,18.48332874,166.67,166.65,18.64964886]
[1749658610055,18.48332874,166.66,166.64,26.02]
[1749658610429,18.48332874,166.66,166.63,18.64964886]
[1749658610634,18.48332874,166.68,166.63,37.1329776]
[1749658611033,18.48332874,166.68,166.63,18.64964886]
[1749658611335,0.28432314,166.71,166.63,18.64964886]
[1749658611731,18.48332874,166.68,166.63,37.1329776]
[1749658612560,3.21512958,166.71,166.63,37.1329776]
[1749658612745,18.48332874,166.68,166.63,37.1329776]
[1749658613338,18.48332874,166.67,166.63,18.64964886]
[1749658613553,18.48332874,166.67,166.63,105.94964886]
[1749658613875,6.28240375,166.72,166.63,124.4329776]
[1749658614027,18.48332874,166.69,166.65,18.64964886]
[1749658614221,6.28240375,166.72,166.65,63.1329776]
[1749658614222,0.28432314,166.72,166.65,63.1329776]
[1749658614458,18.48332874,166.7,166.65,63.1329776]
[1749658614662,18.48332874,166.72,166.67,37.1329776]
[1749658614834,9.21282345,166.74,166.65,26.0]
[1749658614835,18.48332874,166.71,166.66,37.1329776]
[1749658615035,18.48332874,166.71,166.66,18.64964886]
[1749658615229,18.48332874,166.71,166.66,37.1329776]
[1749658615435,18.48332874,166.7,166.66,18.64964886]
[1749658615650,15.21029514,166.74,166.66,18.64964886]
[1749658615867,18.48332874,166.68,166.66,18.64964886]
[1749658616045,0.28432314,166.73,166.66,18.64964886]
[1749658616368,18.48332874,166.68,166.66,18.64964886]
[1749658617352,5.9986474,166.71,166.66,18.64964886]
[1749658617555,18.48332874,166.68,166.66,18.64964886]
[1749658618874,18.48332874,166.68,166.61,26.14216157]
[1749658618875,36.96665748,166.67,166.55,6.2302]
[1749658619047,18.48332874,166.61,166.55,6.2302]
[1749658619247,0.42648471,166.67,166.43,23.27330377]
[1749658619248,18.48332874,166.56,166.48,7.5901]
[1749658619444,18.48332874,166.53,166.48,26.07342874]
[1749658619676,18.48332874,166.53,166.49,25.98]
[1749658619975,18.48332874,166.54,166.5,18.64964886]
[1749658620347,18.48332874,166.54,166.5,25.98]
[1749658620551,0.28432314,166.59,166.5,25.98]
[1749658620760,0.28432314,166.61,166.53,18.64964886]
[1749658621069,18.48332874,166.58,166.53,37.1329776]
[1749658621281,18.48332874,166.57,166.53,44.62964886]
[1749658621872,6.2865706,166.61,166.53,44.62964886]
[1749658621874,18.48332874,166.56,166.53,44.62964886]
[1749658622676,18.48332874,166.57,166.53,63.1129776]
[1749658622877,18.48332874,166.58,166.53,63.1129776]
[1749658623082,6.00096015,166.64,166.56,18.64964886]
[1749658623083,18.48332874,166.6,166.56,18.64964886]
[1749658623288,18.48332874,166.6,166.56,44.62964886]
[1749658625279,18.48332874,166.57,166.56,25.98]
[1749658625784,18.48332874,166.57,166.54,25.98]
[1749658625972,18.48332874,166.55,166.54,44.62964886]
[1749658626172,18.48332874,166.55,166.53,25.98]
[1749658626482,18.48332874,166.56,166.53,25.98]
[1749658627191,0.28432314,166.61,166.53,25.98]
[1749658627192,18.48332874,166.55,166.53,25.98]
[1749658627867,0.28432314,166.59,166.53,25.98]
[1749658628072,18.48332874,166.56,166.53,25.98]
[1749658628473,18.48332874,166.54,166.53,44.62964886]
[1749658629690,18.48332874,166.55,166.53,44.62964886]
[1749658630092,18.48332874,166.54,166.53,44.62964886]
[1749658630474,18.48332874,166.54,166.53,25.98]
[1749658631195,6.00352015,166.57,166.53,25.98]
[1749658631379,18.48332874,166.54,166.52,25.98]
[1749658631580,18.48332874,166.53,166.52,25.98]
[1749658632168,6.00352015,166.57,166.52,25.98]
[1749658632370,18.48332874,166.53,166.52,25.98]
[1749658633395,18.48332874,166.53,166.51,18.64964886]
[1749658633571,18.48332874,166.52,166.51,44.62964886]
[1749658633770,0.28432314,166.57,166.51,44.62964886]
[1749658633990,18.48332874,166.52,166.51,44.62964886]
[1749658634201,18.48332874,166.52,166.51,25.98]
[1749658634497,18.48332874,166.52,166.49,44.62964886]
[1749658634694,18.48332874,166.5,166.49,44.62964886]
[1749658635170,18.48332874,166.5,166.49,18.64964886]
[1749658635372,18.48332874,166.5,166.49,44.62964886]
[1749658635682,18.48332874,166.5,166.49,18.64964886]
[1749658635869,18.48332874,166.5,166.49,25.98]
[1749658636491,18.48332874,166.5,166.47,18.64964886]
[1749658636676,18.48332874,166.5,166.48,25.98]
[1749658637366,18.48332874,166.53,166.49,18.64964886]
[1749658637569,18.48332874,166.53,166.51,18.64964886]
[1749658637996,6.14503562,166.59,166.51,18.64964886]
[1749658638295,18.48332874,166.54,166.52,25.98]
[1749658638475,18.48332874,166.53,166.52,25.98]
[1749658639306,18.48332874,166.54,166.52,25.98]
[1749658639881,18.48332874,166.55,166.52,25.98]
[1749658640074,6.00199855,166.62,166.53,18.64964886]
[1749658640269,18.48332874,166.57,166.54,25.98]
[1749658640677,18.48332874,166.56,166.54,25.98]
[1749658641001,2.98314031,166.59,166.54,25.98]
[1749658641186,18.48332874,166.59,166.55,18.64964886]
[1749658641385,18.48332874,166.6,166.57,18.64964886]
[1749658641834,18.48332874,166.6,166.58,25.98]
[1749658641985,3.01673434,166.65,166.59,18.64964886]
[1749658642174,18.48332874,166.64,166.61,18.64964886]
[1749658642378,18.48332874,166.64,166.62,25.98]
[1749658643502,18.48332874,166.66,166.62,25.98]
[1749658643875,5.99880023,166.7,166.62,25.98]
[1749658644086,18.48332874,166.66,166.62,25.98]
[1749658645498,18.48332874,166.67,166.63,18.64964886]
[1749658645917,18.48332874,166.65,166.63,18.64964886]
[1749658646613,18.48332874,166.67,166.63,18.64964886]
[1749658648103,6.14,166.71,166.66,18.48332874]
[1749658648306,18.48332874,166.7,166.68,18.64964886]
[1749658648614,18.48332874,166.71,166.68,18.64964886]
[1749658649210,18.48332874,166.7,166.68,18.64964886]